[Event "Croatian 1A League 2022"]
[Site "Porec"]
[Date "2022.09.25"]
[Round "2.5"]
[White "Jovanic, Ognjen"]
[Black "Ivekovic, Zvonimir"]
[Result "1-0"]
[ECO "A90"]
[WhiteElo "2507"]
[BlackElo "2380"]
[Annotator "TA"]
[PlyCount "73"]
[EventDate "2022.09.24"]
[EventType "team-tourn"]
[EventCountry "CRO"]
[SourceTitle "playchess.com"]
[Source "ChessBase"]
[SourceQuality "1"]
[TimeControl "40/5400+30:1800+30"]

{[%evp 17,73,11,47,40,51,46,54,39,53,50,56,55,54,50,64,37,38,36,33,28,23,17,37,0,0,0,0,-20,-19,-14,88,36,115,110,108,125,119,108,110,100,100,95,280,249,273,277,272,277,290,242,431,433,662,641,1041,974,967,923]} 1. d4 {[%emt 0:00:18]} e6 {[%emt 0:00:08]} 2. Nf3 {[%emt 0:02:29]} f5 {[%emt 0:00:19]} 3. g3 {[%emt 0:05:02]} Nf6 {[%emt 0:00:08]} 4. Bg2 {[%emt 0:00:07]} d5 {[%emt 0:01:44]} 5. O-O {[%emt 0:02:37]} Bd6 {[%emt 0:00:55]} 6. b3 {[%emt 0:05:03]} Qe7 {[%emt 0:00:49]} 7. c4 {[%emt 0:01:58]} c6 {[%emt 0:00:06]} 8. Bb2 {[%emt 0:00:19]} O-O {[%emt 0:00:52]} 9. Nbd2 {[%emt 0:06:10][%cal Bb1d2,Bd2f3,Bf3e1,Be1d3][%mdl 32] 9.Qc1 is more advanced technology.} Bd7 {[%emt 0:05:31]} 10. Ne5 {[%emt 0:02:58] A90: Dutch Defence: Miscellaneous and Modern Stonewall (with ...Bd6).} a5 {[%emt 0:05:49]} 11. Ndf3 {[%emt 0:06:51]} Be8 {[%emt 0:01:13]} 12. Ne1 {[%emt 0:02:19] White is slightly better.} Nbd7 {[%emt 0:22:46]} 13. N1d3 {[%emt 0:00:33] [#]} g5 $146 {[%emt 0:01:58]} ({Predecessor:} 13... h6 14. Qc2 g5 15. Rad1 Bh5 16. a4 Qh7 17. Rc1 Rfe8 18. f3 Bc7 19. Kh1 Rad8 20. Qd2 {½-½ (81) Schwetlick,T (2502)-Schwenck,M (2524) ICCF email 2018}) 14. Qc1 {[%emt 0:09:32]} h6 {[%emt 0:06:55]} 15. f3 {[%emt 0:01:27]} a4 {[%emt 0:07:05]} 16. c5 {[%emt 0:05:15] White is more active.} Bxe5 {[%emt 0:02:20]} 17. dxe5 {[%emt 0:00:25]} Nh5 {[%emt 0:00:05]} 18. b4 {[%emt 0:07:58]} f4 $1 {[%emt 0:00:54]} 19. g4 $36 {[%emt 0:01:27][%mdl 2048] White has the initiative.} Ng7 {[%emt 0:00:03]} 20. e3 {[%emt 0:06:47]} Bg6 {[%emt 0:00:37]} 21. Nf2 {[%emt 0:00:14]} b6 {[%emt 0:03:41][%cal Rb6c5]} 22. Bd4 {[%emt 0:03:51]} (22. h4 $5 {[%cal Rh4g5]}) 22... bxc5 {[%emt 0:01:05]} 23. bxc5 {[%emt 0:00:02][%cal Oh2h4]} Ra5 {[%emt 0:04:38]} (23... Ne8 $11 {keeps the balance.}) 24. Qc3 {[%emt 0:03:42]} ({White should try} 24. h4 $16) 24... Rxc5 {[%emt 0:05:37]} (24... Ra7 $14) 25. Qa3 {[%emt 0:03:37][%mdl 64] [#] aiming for Rac1. Pin} Rf7 {[%emt 0:00:00]} 26. Bxc5 {[%emt 0:00:17]} Qxc5 {[%emt 0:00:00]} 27. Qxc5 {[%emt 0:00:15]} Nxc5 {[%emt 0:00:00]} 28. Rac1 {[%emt 0:04:05][%cal Ba1c1,Bc1c6,Bc6a6,Ba6a7][%mdl 32]} Nd7 {[%emt 0:00:00]} 29. exf4 {[%emt 0:02:49]} gxf4 {[%emt 0:03:41] [#] Black cannot hold the game after this.} (29... Rxf4 $16 30. Rxc6 Nxe5) 30. Rxc6 $18 {[%emt 0:01:36] Re1 is the strong threat.} Nxe5 {[%emt 0:00:02]} 31. Ra6 {[%emt 0:01:10]} Nc4 {[%emt 0:01:59]} 32. Rc1 {[%emt 0:00:10]} (32. Rxa4 $6 Ne8 33. Rc1 (33. Ra8 Rb7 $18) 33... Ned6 $18) 32... Rb7 {[%emt 0:10:27]} 33. Bf1 {[%emt 0:01:32]} ({Don't take} 33. Rxa4 e5 34. Ra6 Kf7 $18) 33... Nb2 {[%emt 0:05:53]} (33... Ne5 34. Kg2 (34. Rxa4 Nxf3+ 35. Kg2 Ne5 $16) 34... Be8) 34. Nh3 {[%emt 0:04:46] White is clearly winning.} Rb4 {[%emt 0:04:20]} (34... Bd3 $142 35. Ra8+ (35. Nxf4 Bxa6 36. Bxa6 Rb4 $11) 35... Kf7 36. Nxf4 Bxf1) 35. Rc8+ {[%emt 0:01:29]} Be8 {[%emt 0:01:13]} 36. Ra7 {[%emt 0:00:51]} e5 {[%emt 0:03:20]} 37. Rcc7 {[%emt 0:02:19] Weighted Error Value: White=0.10 (very precise) /Black=0.40} 1-0

[Event "Croatian 1A League 2022"]
[Site "Porec"]
[Date "2022.09.25"]
[Round "2.6"]
[White "Zovko, Mario"]
[Black "Srbis, Jurica"]
[Result "1/2-1/2"]
[ECO "C47"]
[WhiteElo "2306"]
[BlackElo "2442"]
[Annotator "TA"]
[PlyCount "81"]
[EventDate "2022.09.24"]
[EventType "team-tourn"]
[EventCountry "CRO"]
[SourceTitle "playchess.com"]
[Source "ChessBase"]
[SourceQuality "1"]
[TimeControl "40/5400+30:1800+30"]

{[%evp 24,81,0,0,0,0,10,8,15,0,0,0,0,0,0,0,5,5,8,-16,-15,-18,-13,-44,-47,-69,-71,-68,-62,-65,-60,-68,-59,-64,-60,-60,-52,-59,0,0,0,0,0,0,0,0,0,0,0,0,0,0,8,0,0,0,11,9,52,65]} 1. e4 {[%emt 0:04:11]} e5 {[%emt 0:00:10]} 2. Nf3 {[%emt 0:00:08]} Nc6 {[%emt 0:00:05]} 3. Nc3 {[%emt 0:00:06]} Nf6 {[%emt 0:00:18]} 4. d4 {[%emt 0:00:06]} exd4 {[%emt 0:00:06]} 5. Nxd4 {[%emt 0:00:06]} Bb4 {[%emt 0:00:08]} 6. Nxc6 {[%emt 0:00:30]} bxc6 {[%emt 0:00:07]} 7. Bd3 {[%emt 0:00:06]} d5 {[%emt 0:00:08]} 8. exd5 {[%emt 0:00:12]} cxd5 {[%emt 0:00:10]} 9. O-O {[%emt 0:00:11]} O-O {[%emt 0:00:09]} 10. Bg5 {[%emt 0:00:04]} c6 {[%emt 0:00:09]} 11. Qf3 {[%emt 0:00:52]} Rb8 {[%emt 0:00:12] 11...h6 is the modern continuation.} 12. Rab1 {[%emt 0:00:15]} Bd6 {[%emt 0:00:36]} 13. Rfe1 {[%emt 0:03:27]} h6 {[%emt 0:02:14] C47: Scotch Four Knights and Four Knights with 4 g3.} 14. Bxf6 {[%emt 0:01:55]} Qxf6 {[%emt 0:00:07]} 15. Qxf6 {[%emt 0:00:05]} gxf6 {[%emt 0:00:07] The position is equal.} 16. Ne2 {[%emt 0:02:13][%cal Bc3e2,Be2g3,Bg3f5][%mdl 32]} c5 {[%emt 0:06:27] [#] Threatens to win with ...c4.} 17. b3 {[%emt 0:00:16] Prevents c4.} Be6 {[%emt 0:01:25]} 18. Ng3 {[%emt 0:00:07]} Rfd8 {[%emt 0:00:39]} 19. Nf5 {[%emt 0:13:59]} Bf8 {[%emt 0:00:13]} 20. Ne3 {[%emt 0:00:11] [#]} a5 $146 {[%emt 0:17:46]} ({Predecessor:} 20... Rb6 21. Kf1 Rb4 22. c4 d4 23. Nf5 Rdb8 24. Ke2 a5 25. Kd2 a4 26. Kc2 Ra8 {½-½ (57) Ofner,M (2077)-Binder,M (2072) Woerth 2014}) 21. c4 {[%emt 0:23:05]} d4 {[%emt 0:07:06]} 22. Nf1 {[%emt 0:17:58]} a4 {[%emt 0:07:49]} 23. Nd2 {[%emt 0:01:23]} Ra8 {[%emt 0:01:14]} 24. Rb2 {[%emt 0:02:17]} axb3 {[%emt 0:02:36]} 25. axb3 {[%emt 0:00:10]} Rdb8 {[%emt 0:01:30]} 26. f4 {[%emt 0:03:09]} f5 {[%emt 0:06:06]} 27. Reb1 {[%emt 0:11:18]} Ra3 {[%emt 0:02:27]} 28. Nf3 {[%emt 0:01:20]} Bd6 {[%emt 0:07:50]} 29. g3 {[%emt 0:00:38]} Kg7 {[%emt 0:01:01]} 30. Ne1 {[%emt 0:03:00]} Bc7 {[%emt 0:11:31]} ({Better is} 30... h5 $15) 31. Nc2 $11 {[%emt 0:04:43]} Raa8 {[%emt 0:00:07]} 32. b4 {[%emt 0:03:31]} cxb4 {[%emt 0:02:48]} 33. Rxb4 {[%emt 0:00:17]} Rxb4 {[%emt 0:02:25]} 34. Rxb4 {[%emt 0:00:09]} Bd6 {[%emt 0:00:46]} 35. Rb6 {[%emt 0:01:22]} Bc5 {[%emt 0:07:59]} 36. Rb5 {[%emt 0:00:47]} Rc8 {[%emt 0:01:19][%cal Oe6c4]} 37. Kf1 {[%emt 0:03:36]} Ba7 {[%emt 0:01:15]} 38. Rb4 {[%emt 0:00:33]} Bc5 {[%emt 0:02:11]} 39. Rb5 {[%emt 0:00:44]} Bd7 {[%emt 0:04:41]} 40. Ra5 {[%emt 0:00:00][%cal Oc2d4]} Bb6 {[%emt 0:00:00]} 41. Ra6 {[%emt 0:02:35] Weighted Error Value: White=0.04 (flawless) /Black=0.05 (flawless)} 1/2-1/2

[Event "Croatian 1A League 2022"]
[Site "Porec"]
[Date "2022.09.25"]
[Round "2.7"]
[White "Fedorchuk, Sergey A."]
[Black "Kozul, Zdenko"]
[Result "1-0"]
[ECO "B67"]
[WhiteElo "2617"]
[BlackElo "2549"]
[Annotator "TA"]
[PlyCount "81"]
[EventDate "2022.09.24"]
[EventType "team-tourn"]
[EventCountry "CRO"]
[SourceTitle "playchess.com"]
[Source "ChessBase"]
[SourceQuality "1"]
[TimeControl "40/5400+30:1800+30"]

{[%evp 16,81,50,22,12,13,32,39,68,63,68,65,60,58,63,64,62,62,62,62,64,64,68,75,74,67,62,83,79,77,77,42,35,39,42,29,35,36,125,119,104,105,199,184,172,165,240,243,233,240,304,300,302,290,262,270,299,268,805,737,1671,1245,29990,29967,29995,29996,29996,29997]} 1. e4 {[%emt 0:00:07] Kritz,Leonid} c5 {[%emt 0:00:07]} 2. Nf3 {[%emt 0:00:15]} d6 {[%emt 0:00:44]} 3. d4 {[%emt 0:00:29]} cxd4 {[%emt 0:00:08]} 4. Nxd4 {[%emt 0:00:13]} Nf6 {[%emt 0:00:08]} 5. Nc3 {[%emt 0:00:08]} Nc6 {[%emt 0:01:23]} 6. Bg5 {[%emt 0:01:48]} e6 {[%emt 0:00:09]} 7. Qd2 {[%emt 0:01:27]} a6 {[%emt 0:01:42]} 8. O-O-O {[%emt 0:00:53]} Bd7 {[%emt 0:00:07]} 9. Kb1 {[%emt 0:02:57]} h6 {[%emt 0:15:47] B67: Sicilian: Richter-Rauzer: 7...a6 8 0-0-0 Bd7, lines without 9 f4 Be7.} 10. Be3 {[%emt 0:08:04]} Ng4 {[%emt 0:01:26]} 11. Nxc6 {[%emt 0:01:34]} bxc6 {[%emt 0:09:18] White is slightly better.} 12. Bf4 $1 {[%emt 0:01:14]} e5 {[%emt 0:00:11]} 13. Bg3 {[%emt 0:00:07]} Be6 {[%emt 0:00:14] [#] Inhibits Bc4.} 14. f3 $146 {[%emt 0:16:36][%cal Bf2f3,Bf3f4,Bf4f5][%mdl 32]} ({Predecessor:} 14. Be2 Qb6 15. Rhf1 g5 16. h4 Rg8 17. hxg5 hxg5 18. Na4 Qc7 19. f3 Nf6 20. Bf2 {1-0 (61) Socko,B (2610)-Hillarp Persson,T (2548) Kusadasi 2006 CBM 113 [Kritz,Leonid]}) 14... Nf6 {[%emt 0:00:09]} 15. f4 {[%emt 0:00:29]} Nh5 {[%emt 0:04:20]} 16. f5 {[%emt 0:00:48]} (16. fxe5 Nxg3 17. hxg3 dxe5 $11) 16... Nxg3 {[%emt 0:00:10]} 17. hxg3 {[%emt 0:00:08]} Bc8 {[%emt 0:00:08]} 18. Bc4 {[%emt 0:00:06]} Bb7 {[%emt 0:05:56]} 19. Qe2 {[%emt 0:06:42]} Be7 {[%emt 0:00:53]} 20. Qh5 {[%emt 0:01:11]} Rf8 {[%emt 0:00:18]} 21. Rd3 {[%emt 0:02:04] White is much more active. The black rooks are badly placed.} Qc7 {[%emt 0:03:33]} 22. Rhd1 {[%emt 0:01:16]} Rd8 {[%emt 0:00:41]} 23. Bb3 {[%emt 0:00:41]} Bf6 {[%emt 0:07:25]} 24. Na4 {[%emt 0:02:50]} Ke7 {[%emt 0:00:48]} 25. a3 $36 {[%emt 0:11:25][%mdl 2048] White has the initiative.} a5 {[%emt 0:08:12]} 26. Bc4 {[%emt 0:01:44]} d5 {[%emt 0:15:56] Black is on the road to losing.} (26... Ba8 $14) 27. exd5 $16 {[%emt 0:02:38]} cxd5 {[%emt 0:00:07]} 28. Bxd5 {[%emt 0:01:11] Black must now prevent Rc3.} Bxd5 {[%emt 0:01:32]} (28... e4 $16 {was called for.} 29. Qe2 Rfe8) 29. Rxd5 $18 {[%emt 0:00:40]} Rxd5 {[%emt 0:00:07]} 30. Rxd5 {[%emt 0:00:13]} Qc4 {[%emt 0:01:00] [#]} (30... Rb8 {was worth a try.}) 31. Rd7+ $3 {[%emt 0:19:59][%mdl 512]} Ke8 {[%emt 0:00:06] [#]} 32. b3 {[%emt 0:00:53] Dancing on a razor blade.} ({But not} 32. Nb6 $6 Qc6) 32... Qf1+ {[%emt 0:06:47]} 33. Rd1 {[%emt 0:05:47]} Qxg2 {[%emt 0:00:18]} 34. Nc5 {[%emt 0:00:23][%cal Ba4c5,Bc5d7,Bd7e5][%mdl 32]} Qc6 {[%emt 0:11:05]} 35. Nd7 {[%emt 0:04:01] Qe2 is the strong threat.} e4 {[%emt 0:01:36]} 36. Qe2 {[%emt 0:02:53]} (36. Nxf8 Qc3 37. Rd8+ Kxd8 38. Qd1+ Bd4 39. Ne6+ fxe6) 36... Rg8 $2 {[%emt 0:02:16]} (36... Ke7 37. Nxf8 Kxf8) 37. Qe3 {[%emt 0:00:10] aiming for Qa7.} Be7 {[%emt 0:03:15]} 38. Ne5 {[%emt 0:01:01]} Qa8 {[%emt 0:00:29]} 39. Qb6 {[%emt 0:00:33] White mates.} Bxa3 {[%emt 0:00:55]} 40. Qc7 {[%emt 0:00:00][%csl Ge5][%cal Rc7f7]} Be7 {[%emt 0:00:00]} 41. Qc4 {[%emt 0:03:55] Weighted Error Value: White=0.07 (flawless) /Black=0.45} 1-0

[Event "Croatian 1A League 2022"]
[Site "Porec"]
[Date "2022.09.25"]
[Round "2.8"]
[White "Stevic, Hrvoje"]
[Black "Bernadskiy, Vitaliy"]
[Result "1/2-1/2"]
[ECO "C47"]
[WhiteElo "2565"]
[BlackElo "2558"]
[Annotator "RC"]
[PlyCount "39"]
[EventDate "2022.09.24"]
[EventType "team-tourn"]
[EventCountry "CRO"]
[SourceTitle "playchess.com"]
[Source "ChessBase"]
[SourceQuality "1"]
[TimeControl "40/5400+30:1800+30"]

1. e4 {[%emt 0:01:23]} e5 {[%emt 0:00:10]} 2. Nf3 {[%emt 0:00:10]} Nc6 {[%emt 0:00:06]} 3. Nc3 {[%emt 0:00:23]} Nf6 {[%emt 0:00:05]} 4. d4 {[%emt 0:00:11]} exd4 {[%emt 0:00:04]} 5. Nxd4 {[%emt 0:00:06]} Bb4 {[%emt 0:00:05]} 6. Nxc6 {[%emt 0:00:09]} bxc6 {[%emt 0:00:05]} 7. Bd3 {[%emt 0:00:10]} O-O {[%emt 0:01:02]} 8. O-O {[%emt 0:00:08]} d5 {[%emt 0:00:03]} 9. Bd2 {[%emt 0:00:33]} a5 {[%emt 0:01:44]} 10. Re1 {[%emt 0:01:06]} Bg4 {[%emt 0:01:37]} 11. Qc1 {[%emt 0:00:32]} Re8 {[%emt 0:00:24]} 12. a3 {[%emt 0:01:30]} Bxc3 {[%emt 0:03:13]} 13. Bxc3 {[%emt 0:00:07]} dxe4 {[%emt 0:00:04]} 14. Bxf6 {[%emt 0:00:09]} Qxf6 {[%emt 0:00:04]} 15. Bxe4 {[%emt 0:00:09]} Rad8 {[%emt 0:00:33]} 16. c3 {[%emt 0:06:06]} h5 {[%emt 0:03:22]} 17. Qc2 {[%emt 0:07:53]} Re5 {[%emt 0:00:36]} 18. Re3 {[%emt 0:03:23]} g6 {[%emt 0:05:12]} 19. Rae1 {[%emt 0:04:09]} Kg7 {[%emt 0:00:17]} 20. h3 {[%emt 0:01:43]} 1/2-1/2

[Event "Croatian 1A League 2022"]
[Site "Porec"]
[Date "2022.09.25"]
[Round "2.9"]
[White "Lalic, Bogdan"]
[Black "Palac, Mladen"]
[Result "1/2-1/2"]
[ECO "D38"]
[WhiteElo "2393"]
[BlackElo "2516"]
[Annotator "TA"]
[PlyCount "49"]
[EventDate "2022.09.24"]
[EventType "team-tourn"]
[EventCountry "CRO"]
[SourceTitle "playchess.com"]
[Source "ChessBase"]
[SourceQuality "1"]
[TimeControl "40/5400+30:1800+30"]

{[%evp 13,29,28,33,0,7,7,0,-7,10,0,0,0,0,0,0,0,11,-3]} 1. d4 {[%emt 0:00:38]} Nf6 {[%emt 0:03:18]} 2. c4 {[%emt 0:00:08]} e6 {[%emt 0:00:05]} 3. Nf3 {[%emt 0:00:06]} d5 {[%emt 0:00:05]} 4. Nc3 {[%emt 0:00:07]} Bb4 {[%emt 0:01:06]} 5. Bg5 {[%emt 0:00:51][%cal Bc1g5,Bg5h4,Bh4g3][%mdl 32]} Nbd7 {[%emt 0:00:44]} 6. cxd5 {[%emt 0:00:14]} exd5 {[%emt 0:00:01]} 7. Qc2 {[%emt 0:01:13]} O-O {[%emt 0:03:53]} 8. a3 {[%emt 0:00:11] D38: Queen's Gambit Declined: Ragozin Defence (4 Nf3 Bb4).} Bxc3+ {[%emt 0:00:10] The position is equal.} 9. Qxc3 {[%emt 0:00:08]} h6 $1 {[%emt 0:00:03] 9...h6 is better than 9...c6.} 10. Bh4 {[%emt 0:00:13]} c6 {[%emt 0:00:05]} 11. e3 {[%emt 0:00:18]} Qe8 {[%emt 0:01:10]} 12. Nd2 {[%emt 0:00:14]} Ne4 {[%emt 0:00:30]} 13. Nxe4 {[%emt 0:00:15]} Qxe4 {[%emt 0:00:03]} 14. Bg3 {[%emt 0:00:09]} Nf6 {[%emt 0:00:05]} 15. Qd3 {[%emt 0:00:35] [#] A rather calm draw.  Weighted Error Value: White=0.08 (flawless) /Black=0.04 (flawless)} {Predecessor:} Bf5 $146 16. Qxe4 Nxe4 17. Rc1 Rfe8 18. Be2 Rac8 19. Bf3 a5 20. b3 f6 21. Bxe4 Bxe4 22. f3 Bf5 23. Kd2 a4 24. b4 g5 25. Rc3 {½-½ (25) Neven,K (2332)-Scheffner,A (2426) IECG email 2000} 1/2-1/2

[Event "Croatian 1A League 2022"]
[Site "Porec"]
[Date "2022.09.25"]
[Round "2.10"]
[White "Petkov, Vladimir"]
[Black "Zaja, Ivan"]
[Result "1/2-1/2"]
[ECO "E18"]
[WhiteElo "2451"]
[BlackElo "2417"]
[Annotator "TA"]
[PlyCount "23"]
[EventDate "2022.09.24"]
[EventType "team-tourn"]
[EventCountry "CRO"]
[SourceTitle "playchess.com"]
[Source "ChessBase"]
[SourceQuality "1"]
[TimeControl "40/5400+30:1800+30"]

{[%evp 17,23,27,27,14,18,15,37,37]} 1. d4 {[%emt 0:00:12]} Nf6 {[%emt 0:00:17]} 2. c4 {[%emt 0:00:36]} e6 {[%emt 0:00:20]} 3. Nf3 {[%emt 0:01:03]} b6 {[%emt 0:02:24]} 4. g3 {[%emt 0:01:49]} Bb7 {[%emt 0:00:17]} 5. Bg2 {[%emt 0:00:22]} Be7 {[%emt 0:00:41]} 6. O-O {[%emt 0:00:23]} O-O {[%emt 0:00:06]} 7. Nc3 {[%emt 0:02:34]} Ne4 {[%emt 0:01:23]} 8. Bd2 {[%emt 0:01:47]} Nxd2 {[%emt 0:14:57]} 9. Qxd2 {[%emt 0:00:27]} d6 {[%emt 0:00:49]} 10. Rad1 {[%emt 0:03:20] E18: Queen's Indian: Old Main Line (4 g3 Bb7 5 Bg2 Be7 6 0-0 0-0 7 Nc3).} Nd7 {[%emt 0:02:27]} 11. e4 {[%emt 0:00:45]} Bf6 {[%emt 0:06:35] [#]} 12. Qe2 $146 {[%emt 0:16:29] Weighted Error Value: White=0.08 (flawless) /Black=0.08 (flawless)} ({Predecessor:} 12. h4 e5 13. Rfe1 Re8 14. b3 g6 15. h5 Kg7 16. Nd5 Bxd5 17. cxd5 exd4 18. Nxd4 Bxd4 {0-1 (87) Sarana,A (2654)-Skliarov,V (2376) Chess.com INT 2020}) 1/2-1/2

[Event "Croatian 1A League 2022"]
[Site "Porec"]
[Date "2022.09.25"]
[Round "2.11"]
[White "Kovacevic, Blazimir"]
[Black "Zelcic, Robert"]
[Result "0-1"]
[ECO "E48"]
[WhiteElo "2405"]
[BlackElo "2495"]
[Annotator "RC"]
[PlyCount "130"]
[EventDate "2022.09.24"]
[EventType "team-tourn"]
[EventCountry "CRO"]
[SourceTitle "playchess.com"]
[Source "ChessBase"]
[SourceQuality "1"]
[TimeControl "40/5400+30:1800+30"]

1. d4 {[%emt 0:00:03]} Nf6 {[%emt 0:00:18]} 2. c4 {[%emt 0:00:10]} e6 {[%emt 0:00:03]} 3. Nc3 {[%emt 0:00:07]} Bb4 {[%emt 0:00:03]} 4. e3 {[%emt 0:00:06]} c5 {[%emt 0:00:40]} 5. Bd3 {[%emt 0:01:02]} O-O {[%emt 0:00:07]} 6. Nge2 {[%emt 0:01:03]} d5 {[%emt 0:00:11]} 7. cxd5 {[%emt 0:00:38]} cxd4 {[%emt 0:00:07]} 8. exd4 {[%emt 0:00:53]} Nxd5 {[%emt 0:02:00]} 9. O-O {[%emt 0:00:13]} Nf6 {[%emt 0:07:03]} 10. Bg5 {[%emt 0:03:27]} Be7 {[%emt 0:02:58]} 11. Bc2 {[%emt 0:03:28]} Nc6 {[%emt 0:02:16]} 12. a3 {[%emt 0:00:13]} g6 {[%emt 0:09:02]} 13. Bb3 {[%emt 0:15:46]} Re8 {[%emt 0:05:36]} 14. Rc1 {[%emt 0:19:56]} Nd5 {[%emt 0:05:01]} 15. Bxe7 {[%emt 0:00:24]} Ncxe7 {[%emt 0:00:37]} 16. Qd2 {[%emt 0:01:15]} b6 {[%emt 0:01:07]} 17. Nf4 {[%emt 0:18:53]} Nxc3 {[%emt 0:04:06]} 18. Qxc3 {[%emt 0:07:56]} Nf5 {[%emt 0:08:05]} 19. Rfd1 {[%emt 0:11:31]} Bb7 {[%emt 0:12:00]} 20. Qc7 {[%emt 0:02:35]} Re7 {[%emt 0:00:56]} 21. Qe5 {[%emt 0:00:14]} Qd6 {[%emt 0:01:33]} 22. Bc2 {[%emt 0:02:30]} Rd8 {[%emt 0:01:14]} 23. Bxf5 {[%emt 0:00:13]} exf5 {[%emt 0:00:23]} 24. Qxd6 {[%emt 0:00:20]} Rxd6 {[%emt 0:00:30]} 25. h4 {[%emt 0:04:16]} Kg7 {[%emt 0:06:18]} 26. Rc3 {[%emt 0:00:51]} a5 {[%emt 0:04:47]} 27. f3 {[%emt 0:01:18]} Red7 {[%emt 0:02:08]} 28. Rcd3 {[%emt 0:00:40]} Ba6 {[%emt 0:00:12]} 29. R3d2 {[%emt 0:00:03]} Bc4 {[%emt 0:00:09]} 30. d5 {[%emt 0:02:46]} h6 {[%emt 0:01:30]} 31. Rd4 {[%emt 0:00:50]} b5 {[%emt 0:01:54]} 32. R1d2 {[%emt 0:00:40]} g5 {[%emt 0:00:28]} 33. hxg5 {[%emt 0:00:35]} hxg5 {[%emt 0:00:01]} 34. Nh3 {[%emt 0:00:47]} Kg6 {[%emt 0:05:50]} 35. a4 {[%emt 0:00:03]} Re7 {[%emt 0:01:36]} 36. Kf2 {[%emt 0:00:15]} f4 {[%emt 0:00:47]} 37. axb5 {[%emt 0:01:16]} Bxb5 {[%emt 0:00:07]} 38. Rc2 {[%emt 0:00:35]} a4 {[%emt 0:01:14]} 39. Ng1 {[%emt 0:00:47]} Red7 {[%emt 0:06:39]} 40. Rc5 {[%emt 0:00:00]} Rb7 {[%emt 0:00:00]} 41. Rb4 {[%emt 0:07:20]} Ba6 {[%emt 0:01:34]} 42. Rxb7 {[%emt 0:04:34]} Bxb7 {[%emt 0:00:19]} 43. Ra5 {[%emt 0:05:51]} Rxd5 {[%emt 0:03:01]} 44. Rxa4 {[%emt 0:00:03]} Rd2+ {[%emt 0:00:14]} 45. Kf1 {[%emt 0:02:24]} Rxb2 {[%emt 0:00:59]} 46. Nh3 {[%emt 0:06:47]} Bc8 {[%emt 0:10:28]} 47. Ra8 {[%emt 0:03:19]} Rc2 {[%emt 0:01:07]} 48. Kg1 {[%emt 0:00:28]} f6 {[%emt 0:00:57]} 49. Rb8 {[%emt 0:01:00]} Be6 {[%emt 0:09:00]} 50. Nf2 {[%emt 0:00:52]} Rc6 {[%emt 0:02:02]} 51. Kh2 {[%emt 0:01:16]} Rc2 {[%emt 0:04:10]} 52. Kg1 {[%emt 0:00:19]} Rc1+ {[%emt 0:00:55]} 53. Kh2 {[%emt 0:00:02]} Rf1 {[%emt 0:00:06]} 54. Rb2 {[%emt 0:01:49]} Ra1 {[%emt 0:06:04]} 55. Rd2 {[%emt 0:00:15]} Ra4 {[%emt 0:00:15]} 56. Rd6 {[%emt 0:01:03]} Kf7 {[%emt 0:00:54]} 57. Rd2 {[%emt 0:00:53]} f5 {[%emt 0:00:25]} 58. Nh3 {[%emt 0:00:50]} Kf6 {[%emt 0:00:37]} 59. Rd6 {[%emt 0:01:19]} g4 {[%emt 0:00:10]} 60. Ng5 {[%emt 0:00:46]} Kxg5 {[%emt 0:01:04]} 61. Rxe6 {[%emt 0:00:05]} Ra2 {[%emt 0:00:55]} 62. fxg4 {[%emt 0:00:48]} fxg4 {[%emt 0:00:01]} 63. Kg1 {[%emt 0:00:17]} Ra1+ {[%emt 0:00:17]} 64. Kf2 {[%emt 0:00:03]} g3+ {[%emt 0:00:42]} 65. Ke2 {[%emt 0:00:14]} Rg1 {[%emt 0:00:09]} 0-1

[Event "Croatian 1A League 2022"]
[Site "Porec"]
[Date "2022.09.25"]
[Round "2.12"]
[White "Jankovic, Alojzije"]
[Black "Loncar, Robert"]
[Result "1-0"]
[ECO "D26"]
[WhiteElo "2548"]
[BlackElo "2367"]
[Annotator "RC"]
[PlyCount "79"]
[EventDate "2022.09.24"]
[EventType "team-tourn"]
[EventCountry "CRO"]
[SourceTitle "playchess.com"]
[Source "ChessBase"]
[SourceQuality "1"]
[TimeControl "40/5400+30:1800+30"]

1. d4 {[%emt 0:00:04]} d5 {[%emt 0:10:00]} 2. c4 {[%emt 0:01:35]} dxc4 {[%emt 0:00:06]} 3. e3 {[%emt 0:03:56]} Nf6 {[%emt 0:00:11]} 4. Bxc4 {[%emt 0:00:21]} e6 {[%emt 0:00:09]} 5. Nf3 {[%emt 0:02:33]} a6 {[%emt 0:01:34]} 6. O-O {[%emt 0:00:56]} Be7 {[%emt 0:00:17]} 7. Qe2 {[%emt 0:01:35]} b5 {[%emt 0:11:57]} 8. Bd3 {[%emt 0:01:05]} Nbd7 {[%emt 0:01:31]} 9. a4 {[%emt 0:01:29]} Bb7 {[%emt 0:00:16]} 10. e4 {[%emt 0:03:30]} bxa4 {[%emt 0:17:07]} 11. Nc3 {[%emt 0:06:31]} c5 {[%emt 0:09:10]} 12. d5 {[%emt 0:07:08]} e5 {[%emt 0:10:17]} 13. Nd2 {[%emt 0:02:22]} O-O {[%emt 0:00:22]} 14. Nc4 {[%emt 0:00:48]} Ne8 {[%emt 0:01:45]} 15. Nxa4 {[%emt 0:14:33]} Nd6 {[%emt 0:02:52]} 16. Bd2 {[%emt 0:07:01]} Nxc4 {[%emt 0:08:05]} 17. Bxc4 {[%emt 0:01:13]} Bd6 {[%emt 0:03:22]} 18. b3 {[%emt 0:01:16]} Qh4 {[%emt 0:01:44]} 19. Nb2 {[%emt 0:01:59]} Nf6 {[%emt 0:06:21]} 20. f3 {[%emt 0:04:01]} a5 {[%emt 0:00:03]} 21. Bxa5 {[%emt 0:02:42]} Nh5 {[%emt 0:00:41]} 22. Nd3 {[%emt 0:01:32]} f5 {[%emt 0:01:37]} 23. Be1 {[%emt 0:04:43]} Qg5 {[%emt 0:02:27]} 24. Rxa8 {[%emt 0:01:11]} Rxa8 {[%emt 0:00:13]} 25. f4 {[%emt 0:02:21]} Nxf4 {[%emt 0:01:49]} 26. Nxf4 {[%emt 0:00:05]} exf4 {[%emt 0:00:08]} 27. e5 {[%emt 0:00:05]} Re8 {[%emt 0:00:33]} 28. Bc3 {[%emt 0:00:17]} Kf8 {[%emt 0:01:24]} 29. Qf2 {[%emt 0:09:50]} Bxe5 {[%emt 0:02:01]} 30. Qxc5+ {[%emt 0:00:06]} Kf7 {[%emt 0:02:26]} 31. Bxe5 {[%emt 0:02:07]} Rxe5 {[%emt 0:00:02]} 32. Qb6 {[%emt 0:01:49]} Re7 {[%emt 0:03:19]} 33. d6+ {[%emt 0:02:44]} Ke8 {[%emt 0:00:04]} 34. Bb5+ {[%emt 0:02:37]} Kf7 {[%emt 0:00:17]} 35. Bc4+ {[%emt 0:00:26]} Ke8 {[%emt 0:00:01]} 36. Qb5+ {[%emt 0:05:31]} Rd7 {[%emt 0:00:03]} 37. Re1+ {[%emt 0:00:20]} Kf8 {[%emt 0:00:04]} 38. Re2 {[%emt 0:00:13]} f3 {[%emt 0:01:00]} 39. Qxd7 {[%emt 0:00:06]} f2+ {[%emt 0:00:55]} 40. Rxf2 {[%emt 0:00:00]} 1-0